bitfinex-derivatives/quotes_ETHF0:USTF0_20210406
["timestamp","ask_amount","ask_price","bid_price","bid_amount"]
[1617671863793,2.90695,2136.5,2136.4,2.90695]
[1617671866293,53.0924,2136.4,2134.2,2.0]
[1617671867801,2.8147,2136.5,2135.1,2.90695]
[1617671868296,54.9718,2135.7,2135.1,2.90695]
[1617671869798,2.90695,2135.2,2135.1,2.90695]
[1617671870307,4.90765,2135.2,2135.1,2.90695]
[1617671873203,2.90695,2135.2,2135.1,2.90695]
[1617671875202,2.90695,2135.2,2135.1,3.30695]
[1617671876402,2.90695,2135.2,2135.1,0.4]
[1617671876904,3.84135,2135.2,2135.1,0.4]
[1617671877102,2.90695,2135.2,2135.1,0.4]
[1617671878002,3.84435,2135.2,2135.1,0.4]
[1617671878203,2.90695,2135.2,2135.1,0.4]
[1617671878703,78.89625,2135.2,2135.1,0.4]
[1617671879906,78.89625,2135.2,2135.1,3.30695]
[1617671881006,2.90695,2135.2,2135.1,3.30695]
[1617671881208,2.90695,2135.2,2135.1,5.33685]
[1617671881413,12.7481,2135.6,2135.1,5.33685]
[1617671881807,12.7481,2135.6,2135.5,2.90695]
[1617671882019,66.5616,2136.2,2135.5,2.90695]
[1617671882415,13.2804,2136.4,2135.5,2.90695]
[1617671883919,62.9446,2136.1,2135.1,2.4299]
[1617671884136,62.9446,2136.1,2135.1,0.4]
[1617671885426,64.8927,2136.1,2135.1,0.4]
[1617671885817,2.90695,2135.2,2135.1,0.4]
[1617671887222,62.9446,2136.1,2135.1,0.4]
[1617671887425,62.9446,2136.1,2135.1,2.2126]
[1617671887618,13.2804,2136.4,2135.1,2.2126]
[1617671888019,13.2804,2136.4,2136.2,2.90695]
[1617671888221,13.2804,2136.4,2136.2,5.31925]
[1617671889121,13.2804,2136.4,2136.2,2.4123]
[1617671889423,13.2804,2136.4,2135.2,2.0]
[1617671890124,2.90695,2135.8,2135.2,2.0]
[1617671890521,13.2804,2136.4,2135.2,2.0]
[1617671891222,12.5721,2136.5,2135.2,2.0]
[1617671891623,56.9668,2136.1,2135.2,2.0]
[1617671892024,56.9668,2136.1,2135.1,0.4]
[1617671894125,56.9668,2136.1,2135.7,2.90695]
[1617671896128,2.90695,2135.8,2135.7,2.90695]
[1617671896528,2.90695,2135.8,2135.1,0.4]
[1617671897642,2.0,2135.7,2135.1,0.4]
[1617671898030,2.90695,2135.2,2135.1,0.4]
[1617671899934,2.90695,2135.2,2135.1,3.30695]
[1617671900836,69.9414,2135.3,2135.1,3.30695]
[1617671901037,69.9414,2135.3,2135.1,5.70825]
[1617671902037,72.84835,2135.3,2135.1,3.30695]
[1617671902237,69.9414,2135.3,2135.1,3.30695]
[1617671903237,69.9414,2135.3,2135.1,0.4]
[1617671904039,72.84835,2135.3,2135.2,2.90695]
[1617671905141,72.84835,2135.3,2135.1,0.4]
[1617671905344,74.62225,2135.3,2135.1,0.4]
[1617671905942,74.62225,2135.3,2135.1,3.30695]
[1617671906142,74.62225,2135.3,2135.1,0.4]
[1617671907143,4.68085,2135.3,2135.1,0.4]
[1617671907344,4.68085,2135.3,2134.2,5.098]
[1617671907544,59.4326,2135.1,2134.2,5.098]
[1617671907863,59.4326,2135.1,2133.2,2.0]
[1617671907864,59.4326,2135.1,2133.5,2.571]
[1617671908049,5.28695,2134.3,2134.2,2.90695]
[1617671908846,5.28695,2134.3,2134.2,3.85325]
[1617671909250,5.28695,2134.3,2134.2,2.90695]
[1617671910048,2.90695,2134.3,2134.2,2.90695]
[1617671911851,2.0,2136.2,2134.2,5.55825]
[1617671912050,66.9091,2135.9,2135.3,2.90695]
[1617671912252,66.9091,2135.9,2135.3,5.58975]
[1617671912552,67.8499,2135.9,2134.1,0.9316]
[1617671912750,0.9408,2135.9,2134.1,0.9316]
[1617671912950,60.986,2135.0,2133.6,0.9501]
[1617671913351,60.0406,2135.0,2133.6,0.9501]
[1617671914051,60.0406,2135.0,2134.4,3.84535]
[1617671914251,60.0406,2135.0,2134.4,2.90695]
[1617671914550,60.0406,2135.0,2133.5,9.669]
[1617671915251,60.0406,2135.0,2134.2,0.4]
[1617671915551,60.0406,2135.0,2134.2,1.3478]
[1617671915753,60.9837,2135.0,2134.2,1.3478]
[1617671915951,60.0406,2135.0,2134.2,1.3478]
[1617671916152,60.0406,2135.0,2134.2,0.4]
[1617671916153,2.90695,2134.3,2134.2,0.4]
[1617671916751,3.85065,2134.3,2134.2,0.4]
[1617671916952,2.90695,2134.3,2134.2,0.4]
[1617671917755,2.90695,2134.3,2134.2,1.3237]
[1617671917955,3.83105,2134.3,2134.2,1.3237]
[1617671918257,2.90695,2134.3,2134.2,0.4]
[1617671918857,60.0406,2135.0,2134.2,2.7353]
[1617671919097,12.5989,2135.3,2134.2,2.7353]
[1617671919356,75.7098,2135.9,2134.2,2.7353]
[1617671920055,75.7098,2135.9,2135.7,2.90695]
[1617671920255,14.9668,2136.3,2135.7,2.90695]
[1617671922059,2.90695,2135.8,2134.8,2.90695]
[1617671922359,2.90695,2135.8,2134.8,5.47795]
[1617671922360,65.21235,2135.8,2134.8,5.47795]
[1617671922760,66.15635,2135.8,2134.8,5.47795]
[1617671922959,65.21235,2135.8,2134.8,2.571]
[1617671924161,2.0,2135.7,2134.8,2.571]
[1617671924360,68.0138,2135.2,2134.8,2.571]
[1617671925161,68.0138,2135.2,2134.8,3.4958]
[1617671925364,12.9668,2136.3,2134.8,2.571]
[1617671925564,77.2283,2135.8,2134.8,2.571]
[1617671926668,14.9668,2136.3,2134.8,2.571]
[1617671927012,12.9668,2136.3,2134.8,4.8917]
[1617671927268,12.9668,2136.3,2134.8,6.8917]
[1617671927567,68.7708,2137.2,2134.8,6.8917]
[1617671928085,68.7708,2137.2,2136.4,2.90695]
[1617671928369,68.7708,2137.2,2136.4,5.22725]
[1617671930071,68.7708,2137.2,2136.7,2.90695]
[1617671930272,0.9349,2137.2,2136.7,2.90695]
[1617671930674,73.9787,2137.7,2136.7,2.90695]
[1617671932273,73.9787,2137.7,2137.2,2.90695]
[1617671933176,71.9787,2137.7,2137.2,2.90695]
[1617671934182,71.9787,2137.7,2136.9,1.8666]
[1617671934183,2.90695,2137.3,2136.9,1.8666]
[1617671935080,0.02731569,2138.5,2136.9,1.8666]
[1617671935484,2.0,2138.6,2136.9,1.8666]
[1617671936281,2.0,2138.6,2137.8,4.80635]
[1617671936780,2.0,2138.7,2137.8,4.80635]
[1617671937483,2.0,2138.7,2137.8,1.8994]
[1617671937982,2.0,2138.7,2137.4,0.9483]
[1617671938183,2.0,2138.7,2137.9,2.90695]
[1617671938483,75.1427,2138.8,2137.9,2.90695]
[1617671939088,75.1427,2138.8,2137.9,5.62895]
[1617671939487,75.1427,2138.8,2137.9,2.722]
[1617671940190,2.90695,2138.0,2137.9,5.62895]
[1617671940391,75.1427,2138.8,2137.9,5.62895]
[1617671942196,13.7883,2139.0,2138.5,2.90695]
[1617671942403,13.7883,2139.0,2138.5,5.09715]
[1617671942598,14.7117,2139.0,2138.5,5.09715]
[1617671943397,13.7883,2139.0,2138.5,5.09715]
[1617671944301,13.7883,2139.0,2138.9,2.90695]
[1617671944504,12.7354,2139.3,2138.9,2.90695]
[1617671945300,12.7354,2139.3,2138.5,2.1902]
[1617671945700,13.72088951,2140.3,2138.5,4.1902]
[1617671945902,13.7303,2140.2,2138.5,4.1902]
[1617671946301,13.7303,2140.2,2139.4,2.90695]
[1617671946803,2.0,2140.1,2139.4,2.90695]
[1617671947104,2.0,2139.7,2137.8,71.174]
[1617671948302,2.0,2139.7,2138.7,2.90695]
[1617671948904,85.8445,2139.8,2138.7,2.90695]
[1617671949102,85.8445,2139.8,2138.7,3.83095]
[1617671949305,85.8445,2139.8,2138.7,2.90695]
[1617671950304,86.7833,2139.8,2139.4,2.90695]
[1617671950605,85.8445,2139.8,2139.4,2.90695]
[1617671950804,85.8445,2139.8,2138.4,2.3591]
[1617671951115,87.8246,2139.8,2137.8,71.174]
[1617671951808,87.8246,2139.8,2137.9,2.0]
[1617671952307,87.8246,2139.8,2139.1,2.90695]
[1617671953007,89.8246,2139.8,2139.1,2.90695]
[1617671953511,17.9801,2139.8,2137.9,0.4]
[1617671953707,64.7683,2138.9,2137.9,0.4]
[1617671953910,66.5802,2138.9,2137.9,0.4]
[1617671954312,66.5802,2138.9,2138.2,2.90695]
[1617671955415,1.8119,2138.9,2138.2,2.90695]
[1617671955650,15.7995,2139.6,2138.2,2.90695]
[1617671956411,2.90695,2138.3,2138.2,2.90695]
[1617671956915,15.7995,2139.6,2138.2,4.86645]
[1617671956916,13.7995,2139.6,2138.2,4.86645]
[1617671958414,13.7995,2139.6,2138.8,2.90695]
[1617671958614,13.7995,2139.6,2138.8,5.39175]
[1617671959716,13.7995,2139.6,2138.8,2.90695]
[1617671960418,13.7995,2139.6,2137.9,0.4]
[1617671960419,5.49845,2138.9,2138.4,2.90695]
[1617671962520,2.90695,2138.5,2138.4,2.90695]
[1617671962820,2.90695,2138.5,2138.2,0.9246]
[1617671963021,2.90695,2138.5,2137.9,0.4]
[1617671964522,2.90695,2138.5,2138.3,2.90695]
[1617671965422,5.48095,2138.5,2137.9,0.4]
[1617671966422,2.90695,2138.0,2137.9,3.30695]
[1617671966622,5.72515,2138.0,2137.9,3.30695]
[1617671967948,2.8182,2138.0,2137.9,3.30695]
[1617671968132,54.7232,2138.6,2137.9,3.30695]
[1617671968358,2.0,2139.5,2137.9,3.30695]
[1617671968548,13.7995,2139.6,2138.6,2.90695]
[1617671968727,13.7995,2139.6,2138.6,5.04595]
[1617671969827,13.7995,2139.6,2138.2,73.1247]
[1617671970427,2.90695,2138.3,2138.2,73.1247]
[1617671970627,2.90695,2138.3,2138.0,2.90695]
[1617671970628,5.06485,2138.3,2138.0,2.90695]
[1617671971929,5.06485,2138.3,2138.0,3.83495]
[1617671972229,2.90695,2138.3,2138.0,2.90695]
[1617671972430,2.90695,2138.5,2138.0,2.90695]
[1617671973333,2.90695,2138.5,2138.0,3.84995]
[1617671973532,2.90695,2138.5,2138.0,2.90695]
[1617671974534,2.90695,2138.5,2138.4,2.90695]
[1617671979435,2.90695,2138.5,2137.9,0.4]
[1617671979636,4.62645,2138.5,2137.9,0.4]
[1617671980439,2.90695,2138.0,2137.9,3.30695]
[1617671980642,5.47425,2138.0,2137.9,0.4]
[1617671981739,58.73855,2138.0,2137.9,0.4]
[1617671982845,58.73855,2138.0,2137.4,2.90695]
[1617671983043,60.73855,2138.0,2137.4,2.90695]
[1617671984446,2.90695,2137.5,2137.4,2.90695]
[1617671984645,4.76445,2137.5,2137.4,2.90695]
[1617671985747,4.76445,2137.5,2136.1,2.571]
[1617671986247,56.4672,2136.8,2136.1,2.571]
[1617671986450,2.90695,2136.2,2136.1,5.47795]
[1617671986649,5.04955,2136.2,2136.1,5.47795]
[1617671987750,52.3983,2137.5,2136.1,5.47795]
[1617671988353,52.3983,2137.5,2136.1,2.571]
[1617671988552,2.90695,2136.2,2136.1,2.571]
[1617671988753,4.3125,2137.4,2136.1,2.571]
[1617671989552,75.843,2136.8,2136.1,2.571]
[1617671989752,77.7779,2136.8,2136.1,2.571]
[1617671990667,75.843,2136.8,2136.1,2.571]
[1617671992555,2.90695,2136.2,2136.1,2.571]
[1617671992756,5.28365,2136.2,2136.1,2.571]
[1617671994855,5.28365,2136.2,2135.6,2.90695]
[1617671995457,5.28365,2136.2,2134.4,4.571]
[1617671995659,54.2526,2135.2,2133.3,2.0]
[1617671995858,57.036,2135.2,2133.5,2.571]
[1617671996156,2.7834,2135.2,2133.5,2.571]
[1617671996355,56.855,2134.3,2133.5,2.571]
[1617671996561,56.855,2134.3,2134.0,2.90695]
[1617671996971,56.855,2134.3,2133.5,7.669]
[1617671997404,86.855,2134.3,2133.5,7.669]
[1617671997557,2.0,2134.2,2133.5,2.571]
[1617671998159,53.4465,2133.9,2133.5,2.571]
[1617671998426,2.0,2134.1,2131.7,0.944]
[1617671998581,55.7084,2132.5,2132.4,2.90695]
[1617671999362,55.7084,2132.5,2131.0,2.571]
[1617671999763,2.90695,2132.8,2131.0,2.571]
[1617671999764,1.9814,2133.3,2131.0,2.571]
[1617671999963,56.6211,2134.2,2130.9,61.221]
[1617672000191,56.6211,2134.2,2131.0,0.9433]
[1617672000375,56.6211,2134.2,2131.0,2.9433]
[1617672000664,2.7834,2135.2,2133.9,2.90695]
[1617672000865,0.43724797,2135.7,2133.9,2.90695]
[1617672000866,56.6288,2134.7,2133.9,2.90695]
[1617672001265,57.5699,2134.7,2133.9,2.90695]
[1617672002266,56.6288,2134.7,2133.9,2.90695]
[1617672002466,56.6288,2134.7,2133.4,1.9952]
[1617672002667,56.6288,2134.7,2134.1,2.90695]
[1617672002867,56.6288,2134.7,2133.4,1.9952]
[1617672004673,56.6288,2134.7,2134.0,2.90695]
[1617672006473,13.4934,2135.9,2134.0,5.14505]
[1617672006673,13.4934,2135.9,2135.0,2.90695]
[1617672006872,13.4934,2135.9,2135.0,4.81515]
[1617672007577,13.4934,2135.9,2135.0,1.9082]
[1617672008180,13.4934,2135.9,2134.0,2.2381]
[1617672008582,13.4934,2135.9,2133.9,68.8087]
[1617672008583,2.90695,2134.3,2134.1,2.90695]
[1617672008880,2.609,2135.1,2132.9,0.9243]
[1617672009081,61.2675,2135.1,2133.0,70.1624]
[1617672010589,2.90695,2134.1,2133.6,2.90695]
[1617672011084,1.9982,2134.6,2133.6,2.90695]
[1617672011882,58.6585,2135.1,2133.6,5.47795]
[1617672012682,4.88015,2134.0,2133.6,5.47795]
[1617672013384,1.9732,2134.0,2133.6,5.47795]
[1617672014686,1.9732,2134.0,2133.6,2.571]
[1617672015486,71.1394,2134.3,2133.6,2.571]
[1617672015887,71.1394,2134.3,2133.6,3.5116]
[1617672016190,74.9676,2135.1,2133.6,2.571]
[1617672016686,2.90695,2134.5,2134.4,2.90695]
[1617672016887,74.9676,2135.1,2134.4,2.90695]
[1617672018489,77.2067,2135.1,2133.6,2.571]
[1617672018691,77.2067,2135.1,2133.9,2.90695]
[1617672020301,78.1439,2135.1,2133.9,2.90695]
[1617672020495,77.2067,2135.1,2133.9,2.90695]
[1617672020701,77.2067,2135.1,2133.6,2.571]
[1617672020893,13.7817,2135.8,2133.6,2.571]
[1617672021891,15.7817,2135.8,2133.6,2.571]
[1617672022792,15.7817,2135.8,2134.1,2.90695]
[1617672023194,13.7817,2135.8,2134.1,2.90695]
[1617672024695,13.7817,2135.8,2133.6,2.571]
[1617672026697,13.7817,2135.8,2134.4,2.90695]
[1617672028701,13.7817,2135.8,2134.8,2.90695]
[1617672029225,13.7817,2135.8,2134.0,1.8258]
[1617672029226,13.7817,2135.8,2134.5,2.0813]
[1617672030500,54.3431,2135.9,2134.5,2.0813]
[1617672030706,54.3431,2135.9,2135.1,2.90695]
[1617672031104,2.0,2137.0,2135.1,2.90695]
[1617672031306,75.3849,2136.9,2135.1,2.90695]
[1617672031507,2.0,2136.8,2135.1,2.90695]
[1617672031806,75.4417,2136.3,2135.1,2.90695]
[1617672032006,75.4417,2136.3,2135.1,5.47795]
[1617672032706,2.90695,2135.2,2135.1,5.47795]
[1617672033208,76.3745,2136.3,2135.1,5.47795]
[1617672033407,75.4417,2136.3,2135.1,5.47795]
[1617672034808,77.4417,2136.3,2135.1,5.47795]
[1617672035008,75.4417,2136.3,2135.1,5.47795]
[1617672035809,75.4417,2136.3,2135.2,2.0]
[1617672036208,75.4417,2136.3,2135.1,5.47795]
[1617672036910,75.4417,2136.3,2136.0,2.90695]
[1617672037612,75.4417,2136.3,2135.2,2.0]
[1617672037815,75.4417,2136.3,2135.1,2.571]
[1617672038015,78.0126,2136.3,2135.1,2.571]
[1617672038419,80.0126,2136.3,2135.1,2.571]
[1617672038818,2.90695,2135.2,2135.1,5.47795]
[1617672040118,2.90695,2135.2,2135.1,2.571]
[1617672041422,5.14725,2135.2,2135.1,2.571]
[1617672042420,82.60985,2135.2,2135.1,2.571]
[1617672043023,82.60985,2135.2,2134.4,2.90695]
[1617672043222,82.60985,2135.2,2134.4,5.47795]
[1617672043522,83.54845,2135.2,2134.4,5.47795]
[1617672043722,82.60985,2135.2,2134.4,2.571]
[1617672044724,2.0,2135.1,2134.4,2.571]
[1617672045024,2.0,2135.1,2129.9,13.4191]
[1617672045025,65.419,2134.4,2133.7,2.90695]
[1617672045225,65.419,2134.4,2133.7,10.57595]
[1617672045425,65.419,2134.4,2133.7,7.669]
[1617672045926,65.419,2134.4,2133.7,2.571]
[1617672046827,2.90695,2133.8,2133.7,7.669]
[1617672047833,4.96805,2133.8,2133.7,3.0653]
[1617672048033,4.96805,2133.8,2132.3,9.618]
[1617672048335,1.8834,2133.2,2130.6,2.0]
[1617672048533,57.0155,2132.0,2130.6,2.0]
[1617672048743,1.7347,2132.0,2130.6,2.0]
[1617672048937,1.7347,2132.0,2131.9,2.90695]
[1617672050639,59.5453,2132.0,2131.9,2.90695]
[1617672050839,4.64165,2132.0,2131.9,2.90695]
[1617672051540,4.64165,2132.0,2130.3,0.9453]
[1617672051840,4.64165,2132.0,2130.0,75.1528]
[1617672052445,2.0,2131.9,2129.0,15.9505]
[1617672052643,2.0,2131.9,2129.0,15.0]
[1617672052842,65.7333,2130.9,2130.8,2.90695]
[1617672053042,67.648,2130.9,2130.8,2.90695]
[1617672053641,67.648,2130.9,2130.8,3.85225]
[1617672053841,67.648,2130.9,2130.8,2.90695]
[1617672054043,2.0,2131.9,2130.8,2.90695]
[1617672054442,30.0,2132.6,2130.8,2.90695]
[1617672054847,2.90695,2130.9,2130.8,2.90695]
[1617672055245,2.0,2132.5,2130.8,2.90695]
[1617672055955,4.0763,2132.5,2130.8,2.90695]
[1617672056951,2.0,2132.5,2131.2,2.90695]
[1617672057751,2.0,2132.5,2131.9,0.4]
[1617672058353,2.0,2132.6,2131.9,0.4]
[1617672058854,2.90695,2132.0,2131.9,0.4]
[1617672059455,74.7742,2132.7,2131.9,0.4]
[1617672059655,12.8556,2133.5,2131.9,2.8226]
[1617672060256,2.0,2133.4,2131.9,2.8226]
[1617672060956,2.0,2133.4,2131.9,0.4]
[1617672060957,2.90695,2132.0,2131.9,0.4]
[1617672061756,5.17925,2132.0,2131.9,0.4]
[1617672062960,2.90695,2132.0,2131.9,0.4]
[1617672066960,5.37155,2132.0,2131.9,0.4]
[1617672068062,2.4646,2132.0,2131.9,0.4]
[1617672068361,68.4718,2132.4,2131.9,0.4]
[1617672068962,2.90695,2132.0,2131.9,0.4]
[1617672069262,5.23865,2132.0,2131.9,0.4]
[1617672069662,5.23865,2132.0,2130.1,2.0]
[1617672070362,15.23865,2132.0,2130.1,2.0]
[1617672070565,16.17395,2132.0,2130.1,2.0]
[1617672070765,15.23865,2132.0,2130.1,2.0]
[1617672070965,12.3317,2132.0,2131.1,2.90695]
[1617672071366,78.2665,2131.2,2130.1,2.0]
[1617672071566,80.3091,2131.2,2129.0,24.669]
[1617672073068,2.90695,2130.5,2130.2,2.90695]
[1617672073367,5.41075,2130.5,2130.2,2.90695]
[1617672074768,5.41075,2130.5,2129.0,22.669]
[1617672075266,69.7479,2130.0,2129.0,22.669]
[1617672075469,71.5648,2130.0,2129.0,22.669]
[1617672075868,71.5648,2130.0,2129.0,17.571]
[1617672076070,73.5648,2130.0,2129.0,17.571]
[1617672076677,103.5648,2130.0,2129.0,17.571]
[1617672076875,31.8169,2130.0,2127.2,7.669]
[1617672077072,70.2825,2128.6,2128.3,2.90695]
[1617672077273,72.8789,2128.6,2128.3,2.90695]
[1617672077673,2.5964,2128.6,2128.3,2.90695]
[1617672078073,2.5964,2128.6,2128.3,3.85085]
[1617672078275,54.1738,2129.5,2128.3,3.85085]
[1617672078474,56.1937,2129.5,2128.3,2.90695]
[1617672079075,56.1937,2129.5,2128.9,2.90695]
[1617672079575,54.1738,2129.5,2128.9,2.90695]
[1617672079975,54.1738,2129.5,2128.9,5.47795]
[1617672080778,54.1738,2129.5,2128.9,2.571]
[1617672081115,54.1738,2129.5,2127.2,65.5873]
[1617672081116,56.462,2129.5,2128.5,2.90695]
[1617672081984,57.3906,2129.5,2128.5,2.90695]
[1617672082577,57.3906,2129.5,2127.3,0.9266]
[1617672082779,56.462,2129.5,2127.2,68.1583]
[1617672083383,2.0,2129.4,2127.2,7.669]
[1617672083585,55.8887,2128.6,2127.2,7.669]
[1617672083983,55.8887,2128.6,2127.2,5.098]
[1617672084789,55.8887,2128.6,2127.2,7.669]
[1617672085191,56.8168,2128.6,2127.9,2.90695]
[1617672085488,56.8168,2128.6,2127.3,2.3095]
[1617672086189,2.0,2128.5,2127.3,2.3095]
[1617672086389,2.0,2128.5,2127.2,5.098]
[1617672086390,59.3138,2128.6,2127.2,5.098]
[1617672086591,2.0,2128.5,2127.2,5.098]
[1617672086993,59.3138,2128.6,2126.6,0.9342]
[1617672087191,59.3138,2128.6,2127.3,2.90695]
[1617672087391,58.3857,2128.6,2127.3,2.90695]
[1617672087592,55.8887,2128.6,2127.3,2.90695]
[1617672087791,2.0,2129.2,2127.3,2.90695]
[1617672087993,30.0,2129.1,2127.3,2.90695]
[1617672088193,71.9643,2129.2,2127.3,2.90695]
[1617672089095,2.90695,2127.5,2127.3,2.90695]
[1617672090293,2.90695,2127.5,2125.9,2.571]
[1617672090693,78.5396,2126.8,2125.9,2.571]
[1617672091193,78.5396,2126.8,2126.5,2.90695]
[1617672091493,78.5396,2126.8,2125.9,2.571]
[1617672091994,2.166,2127.2,2125.9,2.571]
[1617672092193,74.9244,2127.8,2125.9,2.571]
[1617672093229,74.9244,2127.8,2126.9,2.90695]
[1617672093416,74.9244,2127.8,2126.9,5.25215]
[1617672093601,74.9244,2127.8,2126.9,2.3452]
[1617672095102,74.9244,2127.8,2127.7,2.90695]
[1617672095300,74.9244,2127.8,2127.7,2.6789]
[1617672095500,9.3211,2127.4,2126.9,2.3452]
[1617672095901,0.9363,2127.4,2126.9,2.3452]
[1617672096104,0.0001,2127.4,2126.9,2.3452]
[1617672097202,0.0001,2127.4,2127.3,2.90695]
[1617672097602,0.0001,2127.4,2126.9,2.3452]
[1617672098403,55.4289,2129.2,2127.0,2.0]
[1617672098755,55.4289,2129.2,2127.0,4.4615]
[1617672099203,2.90695,2128.6,2127.0,4.4615]
[1617672099405,55.4289,2129.2,2127.0,4.4615]
[1617672101208,55.4289,2129.2,2128.6,2.90695]
[1617672101407,55.4289,2129.2,2128.6,4.85575]
[1617672103122,2.90695,2128.7,2128.6,1.9488]
[1617672103518,2.90695,2128.7,2128.3,2.90695]
[1617672103750,2.90695,2128.7,2127.0,2.4615]
[1617672103911,2.90695,2128.7,2125.8,2.0]
[1617672104312,2.90695,2128.7,2126.3,2.0]
[1617672104737,2.90695,2128.7,2126.3,3.9072]
[1617672105146,55.4289,2129.2,2126.3,3.9072]
[1617672105147,55.4289,2129.2,2128.5,2.90695]
[1617672105316,55.4289,2129.2,2128.5,1.7596]
[1617672106040,13.4001,2130.7,2128.5,1.7596]
[1617672106917,2.0,2130.6,2128.5,1.7596]
[1617672107117,2.90695,2128.6,2128.5,1.7596]
[1617672107317,2.90695,2128.6,2128.4,2.90695]
[1617672108220,2.90695,2128.6,2127.6,2.0]
[1617672109123,63.9901,2129.2,2128.0,2.90695]
[1617672109323,2.0,2129.1,2127.5,2.571]
[1617672111125,2.0,2129.1,2127.8,2.90695]
[1617672111825,63.9901,2129.2,2127.8,3.83985]
[1617672112326,59.6095,2131.0,2127.8,2.90695]
[1617672112525,58.6672,2131.0,2127.8,2.90695]
[1617672112725,58.6672,2131.0,2127.9,2.0]
[1617672112926,2.0,2130.6,2127.9,2.0]
[1617672113227,2.0,2130.6,2128.7,2.90695]
[1617672113426,2.0,2130.6,2128.7,4.79415]
[1617672115128,2.90695,2128.9,2128.7,4.79415]
[1617672115528,2.90695,2128.9,2128.7,5.72435]
[1617672115739,2.90695,2128.9,2128.7,4.79415]
[1617672116131,2.90695,2128.9,2128.7,1.8872]
[1617672116330,2.90695,2128.9,2127.7,2.0]
[1617672116530,2.90695,2128.9,2127.5,2.571]
[1617672116732,4.90695,2128.9,2127.5,2.571]
[1617672117230,76.191,2128.6,2127.9,2.90695]
[1617672117733,76.191,2128.6,2127.5,2.571]
[1617672117932,76.191,2128.6,2126.2,2.0]
[1617672119435,2.90695,2127.3,2126.2,2.0]
[1617672120336,56.2202,2127.2,2126.2,2.0]
[1617672120537,56.2202,2127.2,2126.1,2.0]
[1617672120936,56.2202,2127.2,2126.1,2.9499]
[1617672121136,56.2202,2127.2,2126.1,2.0]
[1617672121339,56.2202,2127.2,2126.9,5.47795]
[1617672121638,56.2202,2127.2,2126.9,7.42315]
[1617672121940,2.0,2129.3,2126.9,7.42315]
[1617672122139,2.0,2129.3,2127.0,2.0]
[1617672123339,2.0,2129.3,2128.1,1.8337]
[1617672124655,2.0,2129.3,2127.6,2.3469]
[1617672125242,2.0,2129.3,2127.7,2.90695]
[1617672126344,4.3712,2129.3,2126.9,9.6142]
[1617672126542,4.3712,2129.3,2126.9,7.669]
[1617672127244,4.3712,2129.3,2127.3,2.90695]
[1617672128845,2.0,2129.3,2127.3,4.79485]
[1617672129345,2.0,2129.3,2128.2,2.90695]
[1617672129545,68.8365,2129.4,2128.2,2.2082]
[1617672130546,68.8365,2129.4,2127.3,1.8879]
[1617672131349,68.8365,2129.4,2128.0,2.90695]
[1617672131549,68.8365,2129.4,2128.0,5.57065]
[1617672131759,68.8365,2129.4,2128.0,2.6637]
[1617672132150,70.8365,2129.4,2128.0,2.6637]
[1617672132751,70.8365,2129.4,2126.9,9.669]
[1617672133255,70.8365,2129.4,2127.7,2.90695]
[1617672133452,70.8365,2129.4,2126.9,9.669]
[1617672133853,70.8365,2129.4,2126.9,7.669]
[1617672134257,70.8365,2129.4,2127.0,2.0]
[1617672134459,70.8365,2129.4,2126.9,7.669]
[1617672135357,70.8365,2129.4,2127.1,2.90695]
[1617672136056,70.8365,2129.4,2127.1,4.94175]
[1617672136859,70.8365,2129.4,2127.2,2.0]
[1617672137059,68.8365,2129.4,2127.2,2.0]
[1617672137360,2.90695,2128.4,2128.3,2.90695]
[1617672137660,68.8365,2129.4,2128.3,4.71925]
[1617672137883,68.8365,2129.4,2128.3,1.8123]
[1617672140362,2.0,2130.5,2128.3,1.8123]
[1617672140563,2.0,2130.5,2128.4,2.0]
[1617672140960,54.6045,2130.9,2128.4,2.0]
[1617672141462,56.6045,2130.9,2129.1,4.84645]
[1617672142164,56.6045,2130.9,2129.1,7.41745]
[1617672143363,56.6045,2130.9,2129.4,2.90695]
[1617672145468,2.90695,2129.5,2129.4,2.90695]
[1617672146371,54.6045,2130.9,2129.4,2.90695]
[1617672146570,54.6045,2130.9,2129.5,2.0]
[1617672147472,54.6045,2130.9,2129.6,2.90695]
[1617672147672,54.6045,2130.9,2129.6,4.68625]
[1617672148074,54.6045,2130.9,2129.6,1.7793]
[1617672148272,54.6045,2130.9,2129.6,2.7067]
[1617672148473,54.6045,2130.9,2129.6,1.7793]
[1617672149373,2.90695,2129.7,2129.6,1.7793]
[1617672149873,2.90695,2129.7,2129.6,3.7793]
[1617672150674,54.6045,2130.9,2129.6,3.7793]
[1617672150872,54.6045,2130.9,2129.6,1.7793]
[1617672151476,54.6045,2130.9,2129.9,2.90695]
[1617672151795,54.6045,2130.9,2129.6,1.7793]
[1617672152976,54.6045,2130.9,2129.2,2.0]
[1617672153483,54.6045,2130.9,2130.2,2.90695]